[Event "*** Titled Tuesday Blitz"]
[Site "Chess.com"]
[Date "2021.03.02"]
[Round "4"]
[White "Zhigalko_Sergei"]
[Black "Lagmantr"]
[Result "0-1"]
[WhiteElo "2903"]
[BlackElo "2746"]
[TimeControl "180+1"]
[EndTime "10:39:05 PST"]
[Termination "Lagmantr won by resignation"]

1. e4 {[%clk 0:02:59.6]} 1... c5 {[%clk 0:03:00.7]} 2. Nf3 {[%clk 0:02:59.4]}
2... d6 {[%clk 0:03:00.9]} 3. d4 {[%clk 0:02:59.8]} 3... cxd4 {[%clk 0:03:01.8]}
4. Qxd4 {[%clk 0:03:00.6]} 4... Nc6 {[%clk 0:03:00.8]} 5. Bb5 {[%clk 0:02:57.7]}
5... a6 {[%clk 0:03:00.6]} 6. Bxc6+ {[%clk 0:02:57.4]} 6... bxc6 {[%clk
0:03:01.5]} 7. c4 {[%clk 0:02:57.8]} 7... e5 {[%clk 0:03:01.8]} 8. Qd3 {[%clk
0:02:58.1]} 8... Ne7 {[%clk 0:03:02.5]} 9. O-O {[%clk 0:02:47.5]} 9... Ng6
{[%clk 0:03:02.8]} 10. Nc3 {[%clk 0:02:41.6]} 10... Be7 {[%clk 0:03:02.5]} 11.
Rd1 {[%clk 0:02:25.1]} 11... O-O {[%clk 0:03:02.9]} 12. h3 {[%clk 0:02:24.4]}
12... f5 {[%clk 0:02:57.5]} 13. Be3 {[%clk 0:02:13.6]} 13... Kh8 {[%clk
0:02:45.6]} 14. Rac1 {[%clk 0:01:59.1]} 14... Be6 {[%clk 0:02:32.7]} 15. exf5
{[%clk 0:01:55.2]} 15... Bxf5 {[%clk 0:02:31.6]} 16. Qe2 {[%clk 0:01:55.9]}
16... Qc8 {[%clk 0:02:22.5]} 17. Nh2 {[%clk 0:01:52]} 17... Qe6 {[%clk
0:02:19.3]} 18. g4 {[%clk 0:01:44.2]} 18... Nh4 {[%clk 0:02:00.7]} 19. gxf5
{[%clk 0:01:42.7]} 19... Rxf5 {[%clk 0:02:01.6]} 20. Ne4 {[%clk 0:01:30.9]}
20... Raf8 {[%clk 0:01:54.3]} 21. Ng3 {[%clk 0:01:26.5]} 21... Nf3+ {[%clk
0:01:51.5]} 22. Kg2 {[%clk 0:01:20.2]} 22... R5f7 {[%clk 0:01:42.5]} 23. Nxf3
{[%clk 0:01:14.4]} 23... Rxf3 {[%clk 0:01:43.4]} 24. Rc3 {[%clk 0:00:44.3]}
24... h5 {[%clk 0:01:36.8]} 25. Bd2 {[%clk 0:00:37.4]} 25... e4 {[%clk
0:01:36.2]} 26. Re1 {[%clk 0:00:07.1]} 26... Rxf2+ {[%clk 0:01:22.8]} 27. Qxf2
{[%clk 0:00:07.1]} 27... Rxf2+ {[%clk 0:01:23.3]} 28. Kxf2 {[%clk 0:00:08]}
28... d5 {[%clk 0:01:23.6]} 29. cxd5 {[%clk 0:00:07.5]} 29... cxd5 {[%clk
0:01:24.5]} 30. Kg2 {[%clk 0:00:06.8]} 30... h4 {[%clk 0:01:19.7]} 31. Ne2
{[%clk 0:00:05.8]} 31... Qg6+ {[%clk 0:01:19.2]} 32. Kh1 {[%clk 0:00:04.9]}
32... Bf6 {[%clk 0:01:18.6]} 33. Rc8+ {[%clk 0:00:04.3]} 33... Kh7 {[%clk
0:01:18.7]} 34. Nf4 {[%clk 0:00:04.4]} 34... Qf5 {[%clk 0:01:19.3]} 35. Rc6
{[%clk 0:00:03.3]} 35... Be5 {[%clk 0:01:18.7]} 36. Rf1 {[%clk 0:00:03.6]} 36...
Bxf4 {[%clk 0:01:18.6]} 37. Rxf4 {[%clk 0:00:03.5]} 37... Qxh3+ {[%clk
0:01:18.6]} 38. Kg1 {[%clk 0:00:04.2]} 38... Qg3+ {[%clk 0:01:17.1]} 39. Kf1
{[%clk 0:00:03.7]} 39... e3 {[%clk 0:01:17.2]} 40. Bxe3 {[%clk 0:00:03.2]} 40...
Qxe3 {[%clk 0:01:16.8]} 41. Rxh4+ {[%clk 0:00:03.7]} 41... Kg8 {[%clk
0:01:16.9]} 42. Rc8+ {[%clk 0:00:03.1]} 42... Kf7 {[%clk 0:01:16.7]} 43. Rhh8
{[%clk 0:00:04]} 43... d4 {[%clk 0:01:14.6]} 44. Rhf8+ {[%clk 0:00:03.5]} 44...
Kg6 {[%clk 0:01:14.7]} 45. Rc6+ {[%clk 0:00:04]} 45... Kh7 {[%clk 0:01:14.6]}
46. Rd8 {[%clk 0:00:03.5]} 46... Qf3+ {[%clk 0:01:12.6]} 0-1

[Event "*** Titled Tuesday Blitz"]
[Site "Chess.com"]
[Date "2021.03.02"]
[Round "4"]
[White "GarciaIsaac"]
[Black "northridgehawk"]
[Result "1-0"]
[WhiteElo "2573"]
[BlackElo "2346"]
[TimeControl "180+1"]
[EndTime "10:39:05 PST"]
[Termination "GarciaIsaac won by resignation"]

1. Nf3 {[%clk 0:02:58.8]} 1... Nf6 {[%clk 0:02:55.5]} 2. g3 {[%clk 0:02:58.1]}
2... g6 {[%clk 0:02:56.4]} 3. Bg2 {[%clk 0:02:58.7]} 3... Bg7 {[%clk 0:02:56.8]}
4. O-O {[%clk 0:02:59.4]} 4... O-O {[%clk 0:02:57.7]} 5. d4 {[%clk 0:02:59.8]}
5... d5 {[%clk 0:02:58.2]} 6. c4 {[%clk 0:03:00.3]} 6... dxc4 {[%clk 0:02:58]}
7. Na3 {[%clk 0:02:58.6]} 7... c3 {[%clk 0:02:57.5]} 8. bxc3 {[%clk 0:02:59.5]}
8... c5 {[%clk 0:02:57.9]} 9. Nc4 {[%clk 0:02:56.3]} 9... Nc6 {[%clk 0:02:56.8]}
10. Ba3 {[%clk 0:02:55.2]} 10... Ne4 {[%clk 0:02:54.4]} 11. Qc2 {[%clk
0:02:31.8]} 11... Bf5 {[%clk 0:02:42.1]} 12. g4 {[%clk 0:02:31.1]} 12... Nd6
{[%clk 0:02:24.3]} 13. gxf5 {[%clk 0:02:27.6]} 13... Nxc4 {[%clk 0:02:24]} 14.
Bxc5 {[%clk 0:02:20.3]} 14... b6 {[%clk 0:02:23.8]} 15. fxg6 {[%clk 0:02:14.7]}
15... bxc5 {[%clk 0:02:22.7]} 16. gxf7+ {[%clk 0:02:14.5]} 16... Rxf7 {[%clk
0:02:00.7]} 17. Ng5 {[%clk 0:02:11.9]} 17... Rf6 {[%clk 0:01:30.5]} 18. Qxh7+
{[%clk 0:02:07.4]} 18... Kf8 {[%clk 0:01:29.9]} 19. Qd3 {[%clk 0:01:56]} 19...
Nb2 {[%clk 0:01:10]} 20. Qc2 {[%clk 0:01:46.2]} 20... Rb8 {[%clk 0:00:50.7]} 21.
Nh7+ {[%clk 0:01:44.3]} 21... Kf7 {[%clk 0:00:50.1]} 22. Nxf6 {[%clk 0:01:44.3]}
22... Bxf6 {[%clk 0:00:51]} 23. Qh7+ {[%clk 0:01:42.9]} 23... Bg7 {[%clk
0:00:36.3]} 24. Bxc6 {[%clk 0:01:37.9]} 24... cxd4 {[%clk 0:00:34]} 25. Qf5+
{[%clk 0:01:30]} 25... Bf6 {[%clk 0:00:23]} 26. Bd5+ {[%clk 0:01:26.2]} 26...
Kg7 {[%clk 0:00:18]} 27. Kh1 {[%clk 0:01:25.1]} 27... Qh8 {[%clk 0:00:13.1]} 28.
Rg1+ {[%clk 0:01:20.3]} 28... Kf8 {[%clk 0:00:12.9]} 29. Rg8+ {[%clk 0:00:59.7]}
29... Qxg8 {[%clk 0:00:12.8]} 30. Bxg8 {[%clk 0:01:00.1]} 30... Kxg8 {[%clk
0:00:12.4]} 31. Rg1+ {[%clk 0:01:00.9]} 31... Kf7 {[%clk 0:00:12.6]} 32. Qd5+
{[%clk 0:00:58.9]} 32... e6 {[%clk 0:00:11.2]} 33. Qd7+ {[%clk 0:00:58.7]} 33...
Be7 {[%clk 0:00:11.5]} 34. Rg7+ {[%clk 0:00:54.5]} 34... Kxg7 {[%clk 0:00:11.2]}
35. Qxe7+ {[%clk 0:00:55]} 35... Kh8 {[%clk 0:00:10.2]} 36. Qf6+ {[%clk
0:00:54]} 36... Kh7 {[%clk 0:00:09.9]} 37. Qh4+ {[%clk 0:00:49.4]} 37... Kg8
{[%clk 0:00:09.5]} 38. Qg3+ {[%clk 0:00:50.2]} 38... Kf7 {[%clk 0:00:09.1]} 39.
Qxb8 {[%clk 0:00:51.1]} 1-0

[Event "*** Titled Tuesday Blitz"]
[Site "Chess.com"]
[Date "2021.03.02"]
[Round "4"]
[White "stasiek18"]
[Black "lacafi"]
[Result "1-0"]
[WhiteElo "2401"]
[BlackElo "2172"]
[TimeControl "180+1"]
[EndTime "10:39:07 PST"]
[Termination "stasiek18 won by resignation"]

1. e4 {[%clk 0:03:00.9]} 1... c6 {[%clk 0:03:00]} 2. Nf3 {[%clk 0:02:58.8]} 2...
d5 {[%clk 0:03:00.5]} 3. Nc3 {[%clk 0:02:59.4]} 3... dxe4 {[%clk 0:03:01]} 4.
Nxe4 {[%clk 0:02:59.8]} 4... Nf6 {[%clk 0:03:01.9]} 5. Ng3 {[%clk 0:02:59]} 5...
e6 {[%clk 0:03:01.9]} 6. d4 {[%clk 0:02:57.6]} 6... Bd6 {[%clk 0:03:02.4]} 7.
Bd3 {[%clk 0:02:56.6]} 7... O-O {[%clk 0:03:02.6]} 8. Qe2 {[%clk 0:02:44.2]}
8... h6 {[%clk 0:02:54]} 9. Bd2 {[%clk 0:02:37.7]} 9... b5 {[%clk 0:02:48.7]}
10. Ne4 {[%clk 0:02:32]} 10... Nxe4 {[%clk 0:02:44]} 11. Qxe4 {[%clk 0:02:31.5]}
11... f5 {[%clk 0:02:43.9]} 12. Qe2 {[%clk 0:02:28.9]} 12... a5 {[%clk
0:02:43.5]} 13. O-O {[%clk 0:02:26.5]} 13... Na6 {[%clk 0:02:34.7]} 14. c3
{[%clk 0:02:12.4]} 14... Nc7 {[%clk 0:02:34.1]} 15. Ne5 {[%clk 0:02:10.7]} 15...
Qe8 {[%clk 0:02:24.9]} 16. Rfe1 {[%clk 0:02:08.5]} 16... Nd5 {[%clk 0:02:23.8]}
17. a4 {[%clk 0:01:57.8]} 17... bxa4 {[%clk 0:02:19.4]} 18. Rxa4 {[%clk
0:01:47.7]} 18... c5 {[%clk 0:02:05.4]} 19. Bb5 {[%clk 0:01:47]} 19... Qd8
{[%clk 0:01:47.1]} 20. Qh5 {[%clk 0:01:23.7]} 20... cxd4 {[%clk 0:01:28]} 21.
Rxd4 {[%clk 0:01:19.9]} 21... Qf6 {[%clk 0:01:13.8]} 22. Nd7 {[%clk 0:00:59.9]}
22... Qf7 {[%clk 0:00:25.3]} 23. Qxf7+ {[%clk 0:00:55.5]} 23... Kxf7 {[%clk
0:00:25.5]} 24. Nxf8 {[%clk 0:00:51.2]} 24... Bxf8 {[%clk 0:00:23.2]} 25. Bc6
{[%clk 0:00:47.6]} 25... Rb8 {[%clk 0:00:21.7]} 26. Bxd5 {[%clk 0:00:40.4]}
26... exd5 {[%clk 0:00:21.9]} 27. b4 {[%clk 0:00:39]} 27... axb4 {[%clk
0:00:21.5]} 28. cxb4 {[%clk 0:00:39.1]} 28... Be6 {[%clk 0:00:21.1]} 29. Rc1
{[%clk 0:00:34.2]} 29... g5 {[%clk 0:00:19.1]} 30. h4 {[%clk 0:00:32.2]} 30...
Kf6 {[%clk 0:00:19]} 31. hxg5+ {[%clk 0:00:31.2]} 31... hxg5 {[%clk 0:00:19.9]}
32. Rc6 {[%clk 0:00:29.9]} 32... Be7 {[%clk 0:00:18.7]} 33. Bxg5+ {[%clk
0:00:27.7]} 33... Ke5 {[%clk 0:00:16.4]} 34. Bxe7 {[%clk 0:00:25.7]} 34... Kxd4
{[%clk 0:00:16.6]} 35. Rxe6 {[%clk 0:00:24.4]} 1-0

[Event "*** Titled Tuesday Blitz"]
[Site "Chess.com"]
[Date "2021.03.02"]
[Round "4"]
[White "bratkoo"]
[Black "Witik"]
[Result "0-1"]
[WhiteElo "2509"]
[BlackElo "2714"]
[TimeControl "180+1"]
[EndTime "10:39:10 PST"]
[Termination "Witik won on time"]

1. Nf3 {[%clk 0:03:00.9]} 1... d5 {[%clk 0:02:59.7]} 2. d4 {[%clk 0:03:00]} 2...
e6 {[%clk 0:02:59.7]} 3. g3 {[%clk 0:02:58.1]} 3... Bd6 {[%clk 0:02:59.6]} 4.
Bg2 {[%clk 0:02:57.8]} 4... f5 {[%clk 0:02:59.7]} 5. c4 {[%clk 0:02:55.4]} 5...
c6 {[%clk 0:02:57.9]} 6. Nc3 {[%clk 0:02:55.3]} 6... Nf6 {[%clk 0:02:57.9]} 7.
Bf4 {[%clk 0:02:52.3]} 7... Bxf4 {[%clk 0:02:52.8]} 8. gxf4 {[%clk 0:02:51.1]}
8... O-O {[%clk 0:02:53.3]} 9. Ne5 {[%clk 0:02:47]} 9... Bd7 {[%clk 0:02:52.8]}
10. Bf3 {[%clk 0:02:42.5]} 10... Be8 {[%clk 0:02:50.3]} 11. Qb3 {[%clk
0:02:39.5]} 11... Qb6 {[%clk 0:02:34.6]} 12. c5 {[%clk 0:02:34.1]} 12... Qc7
{[%clk 0:02:32.7]} 13. Qc2 {[%clk 0:02:25.3]} 13... Nbd7 {[%clk 0:02:18.9]} 14.
Rg1 {[%clk 0:02:25.1]} 14... Ne4 {[%clk 0:02:04.9]} 15. Bxe4 {[%clk 0:02:05.5]}
15... fxe4 {[%clk 0:02:02.1]} 16. e3 {[%clk 0:02:05.3]} 16... Nxe5 {[%clk
0:02:00.1]} 17. fxe5 {[%clk 0:02:05]} 17... Bh5 {[%clk 0:01:59.9]} 18. f4 {[%clk
0:02:03.9]} 18... exf3 {[%clk 0:01:54.9]} 19. Kf2 {[%clk 0:02:04.4]} 19... Qe7
{[%clk 0:01:52.8]} 20. Rg3 {[%clk 0:02:04.3]} 20... Qh4 {[%clk 0:01:51.4]} 21.
h3 {[%clk 0:02:04.7]} 21... Rf5 {[%clk 0:01:48.5]} 22. Rg1 {[%clk 0:01:55.4]}
22... Rg5 {[%clk 0:01:45.5]} 23. Qd2 {[%clk 0:01:17.5]} 23... Rf8 {[%clk
0:01:43.4]} 24. e4 {[%clk 0:00:53.5]} 24... h6 {[%clk 0:01:27.2]} 25. b4 {[%clk
0:00:19.3]} 25... dxe4 {[%clk 0:01:12]} 26. Qe3 {[%clk 0:00:18.8]} 26... Rf4
{[%clk 0:01:05.5]} 27. b5 {[%clk 0:00:18.3]} 27... Bg6 {[%clk 0:00:54.7]} 28.
bxc6 {[%clk 0:00:17.5]} 28... bxc6 {[%clk 0:00:55]} 29. a4 {[%clk 0:00:11.6]}
29... a5 {[%clk 0:00:54.2]} 30. Nb1 {[%clk 0:00:06.2]} 30... Rff5 {[%clk
0:00:45.9]} 31. Nd2 {[%clk 0:00:06.5]} 31... Rxg3 {[%clk 0:00:46.2]} 32. Rxg3
{[%clk 0:00:06.9]} 32... Rg5 {[%clk 0:00:46.6]} 33. Nf1 {[%clk 0:00:07]} 33...
Bf5 {[%clk 0:00:41.4]} 34. Qb3 {[%clk 0:00:04.5]} 34... Kh7 {[%clk 0:00:40.1]}
0-1

[Event "*** Titled Tuesday Blitz"]
[Site "Chess.com"]
[Date "2021.03.02"]
[Round "4"]
[White "Diamantidis_13"]
[Black "tusplingher"]
[Result "1-0"]
[WhiteElo "2428"]
[BlackElo "2230"]
[TimeControl "180+1"]
[EndTime "10:39:11 PST"]
[Termination "Diamantidis_13 won by resignation"]

1. d4 {[%clk 0:03:00.9]} 1... Nf6 {[%clk 0:02:59.3]} 2. c4 {[%clk 0:03:00.5]}
2... c5 {[%clk 0:02:59.3]} 3. d5 {[%clk 0:03:00.1]} 3... b5 {[%clk 0:02:59.5]}
4. Bg5 {[%clk 0:03:00.4]} 4... Ne4 {[%clk 0:02:56.9]} 5. Nd2 {[%clk 0:03:00.7]}
5... Nxg5 {[%clk 0:02:56.6]} 6. h4 {[%clk 0:03:01]} 6... e6 {[%clk 0:02:48.5]}
7. hxg5 {[%clk 0:02:59.9]} 7... Qxg5 {[%clk 0:02:48.3]} 8. dxe6 {[%clk 0:03:00]}
8... fxe6 {[%clk 0:02:47]} 9. cxb5 {[%clk 0:03:00.5]} 9... d5 {[%clk 0:02:45]}
10. e4 {[%clk 0:02:57.2]} 10... Bb7 {[%clk 0:02:38.3]} 11. Ngf3 {[%clk
0:02:53.7]} 11... Qf6 {[%clk 0:02:36.6]} 12. e5 {[%clk 0:02:53.9]} 12... Qd8
{[%clk 0:02:34]} 13. Bd3 {[%clk 0:02:46.8]} 13... h6 {[%clk 0:02:23.5]} 14. Bg6+
{[%clk 0:02:40.5]} 14... Kd7 {[%clk 0:02:23.1]} 15. Qa4 {[%clk 0:02:31.4]} 15...
Kc8 {[%clk 0:02:17]} 16. Qg4 {[%clk 0:02:29.9]} 16... Qe7 {[%clk 0:02:04.7]} 17.
Rc1 {[%clk 0:02:22.4]} 17... Nd7 {[%clk 0:02:04.3]} 18. b4 {[%clk 0:02:16.2]}
18... c4 {[%clk 0:02:04.1]} 19. Nxc4 {[%clk 0:02:15.8]} 19... dxc4 {[%clk
0:02:04.1]} 20. Qxc4+ {[%clk 0:02:15.3]} 20... Nc5 {[%clk 0:01:56.9]} 21. bxc5
{[%clk 0:02:00.2]} 21... Bd5 {[%clk 0:01:56.3]} 22. Qc3 {[%clk 0:01:54]} 22...
Qb7 {[%clk 0:01:54.9]} 23. a4 {[%clk 0:01:50.5]} 23... Be7 {[%clk 0:01:46.1]}
24. Nd4 {[%clk 0:01:29.4]} 24... Bxg2 {[%clk 0:01:36.7]} 25. Rg1 {[%clk
0:01:28.7]} 25... Bd5 {[%clk 0:01:36.3]} 26. c6 {[%clk 0:00:58.9]} 26... Qb6
{[%clk 0:01:26.3]} 27. Bf7 {[%clk 0:00:50.1]} 27... a5 {[%clk 0:01:25]} 28. Kf1
{[%clk 0:00:41.6]} 28... Bb4 {[%clk 0:01:18.6]} 29. Qe3 {[%clk 0:00:41.2]} 29...
Bc5 {[%clk 0:01:09.5]} 30. Rxg7 {[%clk 0:00:27.9]} 30... Bxd4 {[%clk 0:01:07]}
31. Qh3 {[%clk 0:00:27.3]} 31... Ra7 {[%clk 0:00:47.4]} 32. Bxe6+ {[%clk
0:00:27]} 32... Bxe6 {[%clk 0:00:46.8]} 33. Qxe6+ {[%clk 0:00:27.6]} 33... Kb8
{[%clk 0:00:47.2]} 34. Qd6+ {[%clk 0:00:18.5]} 34... Ka8 {[%clk 0:00:43.9]} 35.
Rxa7+ {[%clk 0:00:12.2]} 35... Kxa7 {[%clk 0:00:39.8]} 36. Qd7+ {[%clk
0:00:11.6]} 36... Ka8 {[%clk 0:00:40.2]} 37. c7 {[%clk 0:00:11.2]} 37... Bc5
{[%clk 0:00:36]} 38. c8=Q+ {[%clk 0:00:10.7]} 1-0

[Event "*** Titled Tuesday Blitz"]
[Site "Chess.com"]
[Date "2021.03.02"]
[Round "4"]
[White "malakismayil"]
[Black "bogcsab"]
[Result "0-1"]
[WhiteElo "2296"]
[BlackElo "2158"]
[TimeControl "180+1"]
[EndTime "10:39:11 PST"]
[Termination "bogcsab won by checkmate"]

1. e4 {[%clk 0:03:00.9]} 1... d6 {[%clk 0:02:59.9]} 2. d4 {[%clk 0:03:00.2]}
2... Nf6 {[%clk 0:02:59.4]} 3. Nc3 {[%clk 0:03:00.5]} 3... c6 {[%clk 0:02:58.9]}
4. g3 {[%clk 0:02:59.3]} 4... g6 {[%clk 0:02:58]} 5. Bg2 {[%clk 0:02:59.3]} 5...
Bg7 {[%clk 0:02:58]} 6. Nge2 {[%clk 0:02:59.6]} 6... O-O {[%clk 0:02:58.2]} 7.
O-O {[%clk 0:02:59.3]} 7... e5 {[%clk 0:02:57.6]} 8. h3 {[%clk 0:02:53]} 8...
Qe7 {[%clk 0:02:56.3]} 9. Kh2 {[%clk 0:02:51.8]} 9... Ne8 {[%clk 0:02:54.1]} 10.
f4 {[%clk 0:02:36.1]} 10... f5 {[%clk 0:02:53.8]} 11. Be3 {[%clk 0:02:21.7]}
11... fxe4 {[%clk 0:02:52.2]} 12. dxe5 {[%clk 0:02:18.1]} 12... d5 {[%clk
0:02:47.7]} 13. Nxd5 {[%clk 0:01:55.2]} 13... cxd5 {[%clk 0:02:46.6]} 14. Qxd5+
{[%clk 0:01:56.1]} 14... Be6 {[%clk 0:02:41.6]} 15. Qxe4 {[%clk 0:01:53.8]}
15... Nc6 {[%clk 0:02:40.7]} 16. Nc3 {[%clk 0:01:46.7]} 16... Nc7 {[%clk
0:02:39.5]} 17. Rf2 {[%clk 0:01:19.1]} 17... Rad8 {[%clk 0:02:38]} 18. Raf1
{[%clk 0:01:15.8]} 18... Nd5 {[%clk 0:02:35.8]} 19. Nxd5 {[%clk 0:01:06.3]}
19... Bxd5 {[%clk 0:02:35.6]} 20. Qa4 {[%clk 0:01:06.7]} 20... Bxg2 {[%clk
0:02:32.6]} 21. Kxg2 {[%clk 0:01:07.6]} 21... a6 {[%clk 0:02:22.6]} 22. a3
{[%clk 0:00:58.3]} 22... g5 {[%clk 0:02:16.6]} 23. Qe4 {[%clk 0:00:50.6]} 23...
gxf4 {[%clk 0:02:14.2]} 24. gxf4 {[%clk 0:00:51.5]} 24... Qh4 {[%clk 0:02:03.8]}
25. Qc4+ {[%clk 0:00:45.1]} 25... Kh8 {[%clk 0:02:02.6]} 26. Qe6 {[%clk
0:00:32.4]} 26... Rde8 {[%clk 0:01:57.6]} 27. Qg4 {[%clk 0:00:30.8]} 27... Qe7
{[%clk 0:01:48.2]} 28. b4 {[%clk 0:00:29.3]} 28... Rg8 {[%clk 0:01:48]} 29. Kh2
{[%clk 0:00:29.1]} 29... Bxe5 {[%clk 0:01:43.7]} 30. Qf3 {[%clk 0:00:29]} 30...
Bf6 {[%clk 0:01:40.4]} 31. Bc5 {[%clk 0:00:28.6]} 31... Qe4 {[%clk 0:01:38.5]}
32. Qh5 {[%clk 0:00:23.8]} 32... Qg6 {[%clk 0:01:34.2]} 33. Qf3 {[%clk
0:00:22.7]} 33... Bh4 {[%clk 0:01:26.4]} 34. Rd2 {[%clk 0:00:21]} 34... Rg7
{[%clk 0:01:11.5]} 35. f5 {[%clk 0:00:15.4]} 35... Qf6 {[%clk 0:01:03.1]} 36.
Rd6 {[%clk 0:00:14.8]} 36... Qe5+ {[%clk 0:00:59.4]} 37. Kh1 {[%clk 0:00:14.8]}
37... Rg3 {[%clk 0:00:51.9]} 38. Qxc6 {[%clk 0:00:04]} 38... Rxh3+ {[%clk
0:00:49.5]} 39. Kg2 {[%clk 0:00:02.7]} 39... Qg3# {[%clk 0:00:49.1]} 0-1

[Event "*** Titled Tuesday Blitz"]
[Site "Chess.com"]
[Date "2021.03.02"]
[Round "4"]
[White "Ali-Farahat"]
[Black "Iskusnyh"]
[Result "0-1"]
[WhiteElo "2418"]
[BlackElo "2607"]
[TimeControl "180+1"]
[EndTime "10:39:13 PST"]
[Termination "Iskusnyh won by checkmate"]

1. e4 {[%clk 0:03:00.9]} 1... e6 {[%clk 0:02:59.6]} 2. d4 {[%clk 0:03:00.5]}
2... d5 {[%clk 0:03:00.2]} 3. Nd2 {[%clk 0:03:00.8]} 3... c5 {[%clk 0:02:59.5]}
4. Ngf3 {[%clk 0:03:00.5]} 4... Nc6 {[%clk 0:02:54.9]} 5. c3 {[%clk 0:02:59.3]}
5... cxd4 {[%clk 0:02:37.7]} 6. cxd4 {[%clk 0:03:00.2]} 6... dxe4 {[%clk
0:02:36.4]} 7. Nxe4 {[%clk 0:03:01.1]} 7... Bb4+ {[%clk 0:02:32.4]} 8. Nc3
{[%clk 0:03:00.7]} 8... Nf6 {[%clk 0:02:31.8]} 9. Bd3 {[%clk 0:03:00.4]} 9...
O-O {[%clk 0:02:30.4]} 10. O-O {[%clk 0:03:00.4]} 10... b6 {[%clk 0:02:24.8]}
11. a3 {[%clk 0:03:00.4]} 11... Bxc3 {[%clk 0:02:19.2]} 12. bxc3 {[%clk
0:03:01.3]} 12... Bb7 {[%clk 0:02:19.3]} 13. Bg5 {[%clk 0:02:59.9]} 13... Ne7
{[%clk 0:02:14.5]} 14. Bxf6 {[%clk 0:02:40.8]} 14... gxf6 {[%clk 0:02:13.2]} 15.
Qe2 {[%clk 0:02:36.1]} 15... Ng6 {[%clk 0:02:10]} 16. Qe3 {[%clk 0:02:31.2]}
16... Rc8 {[%clk 0:02:04.3]} 17. Rac1 {[%clk 0:02:31.1]} 17... Qd6 {[%clk
0:02:03.1]} 18. c4 {[%clk 0:02:04.9]} 18... Bxf3 {[%clk 0:01:50.7]} 19. gxf3
{[%clk 0:02:01.8]} 19... Rfd8 {[%clk 0:01:49.9]} 20. Rfd1 {[%clk 0:01:55.5]}
20... Qxd4 {[%clk 0:01:33.6]} 21. Bxg6 {[%clk 0:01:53.4]} 21... Qxd1+ {[%clk
0:01:27.1]} 22. Rxd1 {[%clk 0:01:52.9]} 22... Rxd1+ {[%clk 0:01:27.6]} 23. Kg2
{[%clk 0:01:53]} 23... hxg6 {[%clk 0:01:28.3]} 24. Qf4 {[%clk 0:01:47.6]} 24...
Kg7 {[%clk 0:01:23.5]} 25. h4 {[%clk 0:01:08.1]} 25... Rc5 {[%clk 0:01:21.2]}
26. Qb8 {[%clk 0:01:06.1]} 26... Ra5 {[%clk 0:01:20.4]} 27. c5 {[%clk
0:00:58.2]} 27... Rxc5 {[%clk 0:01:16.4]} 28. Qxa7 {[%clk 0:00:57.8]} 28... Rb1
{[%clk 0:01:12.4]} 29. f4 {[%clk 0:00:50.3]} 29... Rf5 {[%clk 0:01:07.9]} 30.
Kg3 {[%clk 0:00:42.6]} 30... Rb3+ {[%clk 0:01:07]} 31. f3 {[%clk 0:00:42.1]}
31... Ra5 {[%clk 0:01:06.9]} 32. Qe7 {[%clk 0:00:35]} 32... Raxa3 {[%clk
0:01:06.2]} 33. f5 {[%clk 0:00:29.5]} 33... Rxf3+ {[%clk 0:01:04.5]} 34. Kg2
{[%clk 0:00:26.4]} 34... exf5 {[%clk 0:00:56.4]} 35. h5 {[%clk 0:00:25.9]} 35...
Rg3+ {[%clk 0:00:55.8]} 36. Kh2 {[%clk 0:00:25.7]} 36... Rh3+ {[%clk 0:00:55.2]}
37. Kg2 {[%clk 0:00:25.7]} 37... Rag3+ {[%clk 0:00:54.9]} 38. Kf2 {[%clk
0:00:25.8]} 38... Rf3+ {[%clk 0:00:50.2]} 39. Kg2 {[%clk 0:00:25.6]} 39... Rhg3+
{[%clk 0:00:49.8]} 40. Kh2 {[%clk 0:00:25.8]} 40... gxh5 {[%clk 0:00:47.8]} 41.
Qd7 {[%clk 0:00:26]} 41... h4 {[%clk 0:00:40.7]} 42. Kh1 {[%clk 0:00:25.6]}
42... h3 {[%clk 0:00:40]} 43. Kh2 {[%clk 0:00:25.6]} 43... Rg2+ {[%clk
0:00:40.2]} 44. Kh1 {[%clk 0:00:25]} 44... Rf1# {[%clk 0:00:40.3]} 0-1

[Event "*** Titled Tuesday Blitz"]
[Site "Chess.com"]
[Date "2021.03.02"]
[Round "4"]
[White "LogoCzar"]
[Black "Chernobay_Artem"]
[Result "0-1"]
[WhiteElo "2352"]
[BlackElo "2614"]
[TimeControl "180+1"]
[EndTime "10:39:15 PST"]
[Termination "Chernobay_Artem won by checkmate"]

1. e4 {[%clk 0:03:00.9]} 1... e6 {[%clk 0:02:59.6]} 2. d4 {[%clk 0:03:00]} 2...
d5 {[%clk 0:03:00.1]} 3. Nc3 {[%clk 0:02:58.2]} 3... Nc6 {[%clk 0:03:00]} 4. Nf3
{[%clk 0:02:52.1]} 4... Nf6 {[%clk 0:02:59.4]} 5. Bd3 {[%clk 0:02:51.7]} 5...
Bb4 {[%clk 0:02:58.1]} 6. e5 {[%clk 0:02:49]} 6... Ne4 {[%clk 0:02:57.7]} 7. O-O
{[%clk 0:02:49.3]} 7... Nxc3 {[%clk 0:02:57.1]} 8. bxc3 {[%clk 0:02:47.6]} 8...
Bxc3 {[%clk 0:02:58]} 9. Rb1 {[%clk 0:02:43.3]} 9... h6 {[%clk 0:02:58.3]} 10.
Be3 {[%clk 0:02:36.1]} 10... O-O {[%clk 0:02:42]} 11. Rb3 {[%clk 0:02:28.7]}
11... Bb4 {[%clk 0:02:40.4]} 12. Qc1 {[%clk 0:02:18.8]} 12... f5 {[%clk
0:01:53.4]} 13. exf6 {[%clk 0:02:01.4]} 13... Qxf6 {[%clk 0:01:47.2]} 14. Ne5
{[%clk 0:01:59.9]} 14... Bd6 {[%clk 0:01:32.8]} 15. f4 {[%clk 0:01:49]} 15...
Ne7 {[%clk 0:01:23.6]} 16. g4 {[%clk 0:01:46.4]} 16... Bxe5 {[%clk 0:01:04.1]}
17. fxe5 {[%clk 0:01:38.6]} 17... Qh4 {[%clk 0:01:03.9]} 18. Bh7+ {[%clk
0:01:34.4]} 18... Kxh7 {[%clk 0:01:01.3]} 19. Rxf8 {[%clk 0:01:34.1]} 19...
Qxg4+ {[%clk 0:01:01.3]} 20. Kf2 {[%clk 0:01:28.7]} 20... Ng6 {[%clk 0:00:56.7]}
21. Rf3 {[%clk 0:01:22.5]} 21... Bd7 {[%clk 0:00:41.7]} 22. Qg1 {[%clk
0:01:09.1]} 22... Qe4 {[%clk 0:00:39.1]} 23. Rd3 {[%clk 0:00:40.7]} 23... Bb5
{[%clk 0:00:24.1]} 24. Rd2 {[%clk 0:00:25.7]} 24... c5 {[%clk 0:00:23.8]} 25.
Bxh6 {[%clk 0:00:20.5]} 25... Qh4+ {[%clk 0:00:23.2]} 26. Rg3 {[%clk 0:00:17.4]}
26... Qxh6 {[%clk 0:00:22.8]} 27. Ke1 {[%clk 0:00:16.7]} 27... Rf8 {[%clk
0:00:15.6]} 28. Rdg2 {[%clk 0:00:06.3]} 28... Qc1# {[%clk 0:00:13.3]} 0-1